bitfinex/quotes_BTCUSD_20250610
["timestamp","ask_amount","ask_price","bid_price","bid_amount"]
[1749579282841,0.58877629,108690.0,108680.0,0.5073934]
[1749579283047,0.60377629,108690.0,108680.0,0.5073934]
[1749579283257,0.60377629,108690.0,108680.0,0.1245916]
[1749579283670,0.60377629,108690.0,108680.0,0.5073934]
[1749579284087,0.60377629,108690.0,108680.0,0.52459165]
[1749579284296,0.60377629,108690.0,108680.0,0.5073934]
[1749579284512,0.60377629,108690.0,108680.0,0.52459165]
[1749579285148,0.58877629,108690.0,108680.0,0.52459165]
[1749579285610,0.50840956,108690.0,108680.0,0.52459517]
[1749579286715,0.50840956,108690.0,108680.0,0.12459584]
[1749579287165,0.50840956,108690.0,108680.0,0.52459584]
[1749579287379,0.50840956,108690.0,108680.0,0.5073934]
[1749579288030,0.50840956,108690.0,108680.0,0.52460105]
[1749579288705,0.16840956,108690.0,108680.0,0.5073934]
[1749579288929,0.16840956,108690.0,108680.0,0.52460105]
[1749579289348,0.16840956,108690.0,108680.0,0.5073934]
[1749579289762,0.16840956,108690.0,108680.0,0.52460105]
[1749579290188,0.16840956,108690.0,108680.0,0.12460105]
[1749579290401,0.16840956,108690.0,108680.0,0.12461076]
[1749579290619,0.21468629,108690.0,108680.0,0.52461076]
[1749579290846,0.21468629,108690.0,108680.0,0.5073934]
[1749579291055,0.21468629,108690.0,108680.0,0.52461076]
[1749579291290,0.19828629,108690.0,108680.0,0.52461076]
[1749579291715,0.15200956,108690.0,108680.0,0.52461076]
[1749579291940,0.15200956,108690.0,108680.0,0.62950571]
[1749579292395,0.15200956,108690.0,108680.0,0.61228835]
[1749579292632,0.15200956,108690.0,108680.0,0.62951141]
[1749579293310,0.15200956,108690.0,108680.0,0.55611621]
[1749579293765,0.49200956,108690.0,108680.0,0.1388934]
[1749579293985,0.49200956,108690.0,108680.0,0.15612533]
[1749579294295,0.49200956,108690.0,108680.0,0.55612533]
[1749579294755,0.49200956,108690.0,108680.0,0.64789709]
[1749579295260,0.49200956,108690.0,108680.0,0.63066516]
[1749579295486,0.49200956,108690.0,108680.0,0.64789375]
[1749579295705,0.49200956,108690.0,108680.0,0.55612199]
[1749579295911,0.49200956,108690.0,108680.0,0.55612198]
[1749579296786,0.49200956,108690.0,108680.0,0.55612136]
[1749579297211,0.49200956,108690.0,108680.0,0.5388934]
[1749579297435,0.49200956,108690.0,108680.0,0.55612136]
[1749579298383,0.49200956,108690.0,108680.0,0.5388934]
[1749579298633,0.55161055,108690.0,108680.0,0.64788957]
[1749579298862,0.55161055,108690.0,108680.0,0.64788943]
[1749579299082,0.55161055,108690.0,108680.0,0.63066516]
[1749579299300,0.55161055,108690.0,108680.0,0.64788941]
[1749579299990,0.34,108690.0,108680.0,0.64788941]
[1749579300216,0.34920005,108690.0,108680.0,0.86242634]
[1749579300444,0.37680062,108690.0,108680.0,0.86242459]
[1749579300664,0.36760015,108690.0,108680.0,0.84520601]
[1749579300894,0.36760015,108690.0,108680.0,0.86242431]
[1749579300895,0.55160971,108690.0,108680.0,0.86242431]
[1749579301583,0.55160971,108690.0,108680.0,0.86241726]
[1749579301818,0.55160971,108690.0,108680.0,0.84520601]
[1749579302056,0.55160971,108690.0,108680.0,0.86241617]
[1749579302272,0.54240991,108690.0,108680.0,0.84520601]
[1749579302510,0.54240991,108690.0,108680.0,0.86241617]
[1749579302770,0.53320986,108690.0,108680.0,0.95773673]
[1749579303448,0.53320986,108690.0,108680.0,0.9577365]
[1749579303681,0.53320986,108690.0,108680.0,0.94052601]
[1749579303944,0.53320986,108690.0,108680.0,0.95773351]
[1749579304172,0.53320986,108690.0,108680.0,0.9577335]
[1749579304850,0.53320986,108690.0,108680.0,0.94052601]
[1749579308613,0.53320986,108690.0,108680.0,0.69444516]
[1749579309375,0.53320986,108690.0,108680.0,0.59916516]
[1749579309601,0.53320986,108690.0,108680.0,0.69444516]
[1749579310497,0.53320986,108690.0,108680.0,0.72604516]
[1749579310962,0.53320986,108690.0,108680.0,0.72584934]
[1749579313805,0.53320986,108690.0,108680.0,0.72567418]
[1749579315128,0.53320986,108690.0,108680.0,0.74288092]
[1749579315889,0.53320986,108690.0,108680.0,0.72567418]
[1749579316090,0.53320986,108690.0,108680.0,0.74288092]
[1749579317207,0.53320986,108690.0,108680.0,0.74288489]
[1749579317442,0.34,108690.0,108680.0,0.74021503]
[1749579317890,0.34919971,108690.0,108680.0,0.74021503]
[1749579318131,0.03679978,108690.0,108680.0,0.66565265]
[1749579318374,0.01839959,108690.0,108680.0,0.66365265]
[1749579318592,0.02759964,108690.0,108680.0,0.75544055]
[1749579318812,0.03679977,108690.0,108680.0,0.75744055]
[1749579319049,0.04599999,108690.0,108680.0,0.75744055]
[1749579319274,0.18397614,108710.0,108690.0,0.0324]
[1749579319487,0.22078945,108700.0,108690.0,0.0324]
[1749579319703,0.22078996,108700.0,108690.0,0.2190334]
[1749579319928,0.00919887,108700.0,108690.0,0.2190334]
[1749579320145,0.0183979,108700.0,108690.0,0.4190334]
[1749579320364,0.00919887,108700.0,108690.0,0.4190334]
[1749579320636,0.35839646,108710.0,108700.0,0.0324]
[1749579320859,0.01839646,108710.0,108700.0,0.1237534]
[1749579321087,0.03679369,108710.0,108700.0,0.1237534]
[1749579321306,0.02759499,108710.0,108700.0,0.1237534]
[1749579321523,0.03679369,108710.0,108700.0,0.1237534]
[1749579321736,0.01839646,108710.0,108700.0,0.1237534]
[1749579321987,0.02759507,108710.0,108700.0,0.1237534]
[1749579322222,0.22076956,108710.0,108700.0,0.14096806]
[1749579322665,0.21157146,108710.0,108700.0,0.14096806]
[1749579323116,0.21157146,108710.0,108700.0,0.54096806]
[1749579323343,0.0091981,108710.0,108700.0,0.54096806]
[1749579323576,0.01839654,108710.0,108700.0,0.54096806]
[1749579323806,0.02759481,108710.0,108700.0,0.54096806]
[1749579324274,0.54235515,108720.0,108700.0,0.54095593]
[1749579324519,0.01839629,108710.0,108700.0,0.4324]
[1749579324756,0.01839621,108710.0,108700.0,0.63353425]
[1749579324979,0.02759448,108710.0,108700.0,0.65073651]
[1749579325205,0.04699171,108710.0,108700.0,0.65073651]
[1749579325432,0.2217694,108710.0,108700.0,0.65073651]
[1749579325665,0.2217694,108710.0,108700.0,0.63353425]
[1749579325888,0.21257121,108710.0,108700.0,0.55549798]
[1749579326114,0.19417441,108710.0,108700.0,0.60379715]
[1749579326326,0.19417441,108710.0,108700.0,0.60379739]
[1749579327470,0.19417441,108710.0,108700.0,0.60379151]
[1749579327910,0.19417441,108710.0,108700.0,0.63519301]
[1749579328122,0.18497571,108710.0,108700.0,0.72698091]
[1749579328612,0.18497571,108710.0,108700.0,0.72697716]
[1749579329310,0.18497571,108710.0,108700.0,0.72697715]
[1749579329736,0.18497571,108710.0,108700.0,1.62353092]
[1749579329737,0.001,108710.0,108700.0,1.62353092]
[1749579329976,0.001,108710.0,108700.0,2.51913643]
[1749579330215,0.00028403,108710.0,108700.0,2.39914503]
[1749579330433,0.00028403,108710.0,108700.0,2.40834432]
[1749579330652,0.00028403,108710.0,108700.0,2.38994617]
[1749579330928,0.00028403,108710.0,108700.0,1.97154717]
[1749579331150,0.04798359,108730.0,108720.0,0.2]
[1749579331373,0.23192546,108730.0,108720.0,0.51451353]
[1749579331999,0.22272913,108730.0,108720.0,0.51451353]
[1749579332218,0.22272913,108730.0,108720.0,0.51651353]
[1749579332438,0.20433588,108730.0,108720.0,0.42127353]
[1749579332657,0.20433588,108730.0,108720.0,0.30317353]
[1749579332879,0.23623588,108730.0,108720.0,0.1915534]
[1749579333098,0.23623588,108730.0,108720.0,0.0963534]
[1749579333584,0.23623588,108730.0,108720.0,0.1915534]
[1749579334271,0.23623588,108730.0,108720.0,0.0963534]
[1749579334488,0.23623588,108730.0,108720.0,0.1915534]
[1749579334922,0.23623588,108730.0,108720.0,0.1895534]
[1749579335154,0.23623588,108730.0,108720.0,0.1875534]
[1749579335378,0.27825204,108730.0,108720.0,0.0933534]
[1749579335592,0.27825204,108730.0,108720.0,0.1885534]
[1749579336021,0.27825204,108730.0,108720.0,0.1885934]
[1749579336455,0.23623588,108730.0,108720.0,0.1885934]
[1749579340639,0.23623588,108730.0,108720.0,0.2057559]
[1749579340859,0.24561992,108730.0,108720.0,0.20575589]
[1749579341592,0.24561992,108730.0,108720.0,0.20575581]
[1749579341829,0.22971992,108730.0,108720.0,0.20575581]
[1749579342054,0.22941992,108730.0,108720.0,0.1885934]
[1749579342265,0.24581992,108730.0,108720.0,0.20576106]
[1749579342704,0.24581992,108730.0,108720.0,0.11056106]
[1749579342931,0.24581992,108730.0,108720.0,0.20576106]
[1749579343348,0.24581992,108730.0,108720.0,0.11056106]
[1749579343572,0.24581992,108730.0,108720.0,0.20576106]
[1749579343805,0.24581992,108730.0,108720.0,0.20576147]
[1749579344022,0.24581992,108730.0,108720.0,0.20576148]
[1749579344237,0.24581992,108730.0,108720.0,0.1885934]
[1749579344452,0.22003588,108730.0,108720.0,0.20576132]
[1749579345282,0.22003588,108730.0,108720.0,0.2057687]
[1749579345518,0.22003588,108730.0,108720.0,0.1885934]
[1749579346129,0.22003588,108730.0,108720.0,0.20576837]
[1749579346338,0.20433588,108730.0,108720.0,0.20576837]
[1749579346553,0.54433588,108730.0,108720.0,0.20576837]
[1749579347005,0.55364806,108730.0,108720.0,0.20576837]
[1749579347227,0.54433588,108730.0,108720.0,0.1885934]
[1749579347469,0.54433588,108730.0,108720.0,0.20577867]
[1749579347718,0.54433588,108730.0,108720.0,0.60577867]
[1749579349047,0.54433588,108730.0,108720.0,0.5885934]
[1749579349258,0.54433588,108730.0,108720.0,0.60578618]
[1749579349472,0.54433588,108730.0,108720.0,0.5885934]
[1749579349668,0.54433588,108730.0,108720.0,0.60578618]
[1749579349903,0.57433588,108730.0,108720.0,0.60578618]
[1749579350771,0.58334195,108730.0,108720.0,0.5885934]
[1749579350987,0.58334195,108730.0,108720.0,0.60579352]
[1749579351419,0.58334195,108730.0,108720.0,0.60579353]
[1749579352503,0.24334195,108730.0,108720.0,0.60579352]
[1749579352716,0.24334195,108730.0,108720.0,0.5885934]
[1749579352944,0.24334195,108730.0,108720.0,0.60579352]
[1749579353836,0.24334195,108730.0,108720.0,0.5885934]
[1749579354050,0.24334195,108730.0,108720.0,0.4933934]
[1749579354300,0.24334195,108730.0,108720.0,0.6057948]
[1749579355179,0.24334195,108730.0,108720.0,0.6057953]
[1749579356031,0.24334195,108730.0,108720.0,0.5885934]
[1749579356247,0.24334195,108730.0,108720.0,0.6057553]
[1749579356463,0.24334195,108730.0,108720.0,0.5105953]
[1749579356685,0.24334195,108730.0,108720.0,0.6057553]
[1749579357608,0.58334195,108730.0,108720.0,0.5885534]
[1749579357871,0.58334195,108730.0,108720.0,0.60575776]
[1749579358541,0.58334195,108730.0,108720.0,0.60575937]
[1749579358752,0.58334195,108730.0,108720.0,0.60575932]
[1749579358967,0.58334195,108730.0,108720.0,0.60575931]
[1749579359187,0.58334195,108730.0,108720.0,0.6057593]
[1749579359434,0.58334195,108730.0,108720.0,0.5885534]
[1749579359645,0.58334195,108730.0,108720.0,0.60575908]
[1749579360065,0.58334195,108730.0,108720.0,0.20575908]
[1749579360520,0.58334195,108730.0,108720.0,0.5885534]
[1749579360816,0.55334195,108730.0,108720.0,0.60576365]
[1749579361252,0.55334195,108730.0,108720.0,0.60576361]
[1749579361678,0.55334195,108730.0,108720.0,0.6057636]
[1749579362113,0.55334195,108730.0,108720.0,0.60577489]
[1749579362759,0.55334195,108730.0,108720.0,0.5885534]
[1749579363205,0.55334195,108730.0,108720.0,0.60577489]
[1749579363426,0.55334195,108730.0,108720.0,0.60577483]
[1749579363650,0.55334195,108730.0,108720.0,0.6203534]
[1749579364300,0.55334195,108730.0,108720.0,0.63758136]
[1749579364547,0.55334195,108730.0,108720.0,0.5885534]
[1749579365230,0.55334195,108730.0,108720.0,0.60578136]
[1749579365459,0.58414195,108730.0,108720.0,0.60578141]
[1749579365894,0.58414195,108730.0,108720.0,0.5885534]
[1749579366141,0.58414195,108730.0,108720.0,0.60578189]
[1749579366363,0.58414195,108730.0,108720.0,0.60578252]
[1749579367251,0.58414195,108730.0,108720.0,0.60578179]
[1749579367493,0.55334195,108730.0,108720.0,0.60578167]
[1749579367715,0.55334195,108730.0,108720.0,0.5885534]
[1749579367929,0.55334195,108730.0,108720.0,0.60578148]
[1749579368386,0.55334195,108730.0,108720.0,0.60578144]
[1749579369049,0.55334195,108730.0,108720.0,0.5885534]
[1749579369297,0.55334195,108730.0,108720.0,0.60578162]
[1749579369528,0.55334195,108730.0,108720.0,0.5885534]
[1749579369747,0.55334195,108730.0,108720.0,0.60578211]
[1749579370420,0.55334195,108730.0,108720.0,0.20578191]
[1749579370635,0.55334195,108730.0,108720.0,0.205782]
[1749579370857,0.55334195,108730.0,108720.0,0.5885534]
[1749579371095,0.55334195,108730.0,108720.0,0.60578209]
[1749579371538,0.55334195,108730.0,108720.0,0.6057821]
[1749579372416,0.55334195,108730.0,108720.0,0.5885534]
[1749579372637,0.55334195,108730.0,108720.0,0.60578239]
[1749579372853,0.55334195,108730.0,108720.0,0.60578238]
[1749579373073,0.55334195,108730.0,108720.0,0.5885534]
[1749579373282,0.55334195,108730.0,108720.0,0.60578239]
[1749579374180,0.55334195,108730.0,108720.0,0.60578234]
[1749579374404,0.55334195,108730.0,108720.0,0.5885534]
[1749579374876,0.55334195,108730.0,108720.0,0.60578235]
[1749579375539,0.55334195,108730.0,108720.0,0.60578221]
[1749579375979,0.55334195,108730.0,108720.0,0.6365822]
[1749579376644,0.55334195,108730.0,108720.0,0.6193534]
[1749579376865,0.55334195,108730.0,108720.0,0.6365817]
[1749579377091,0.36959042,108730.0,108720.0,0.72820183]
[1749579377313,0.02039308,108730.0,108720.0,0.72820183]
[1749579377523,0.22272887,108730.0,108720.0,0.71097353]
[1749579377743,0.03878691,108730.0,108720.0,0.72820031]
[1749579377985,0.03878691,108730.0,108720.0,0.71097353]
[1749579378241,0.02958991,108730.0,108720.0,0.72819998]
[1749579378503,0.01119641,108730.0,108720.0,0.74274079]
[1749579378720,0.02039308,108730.0,108720.0,0.63389425]
[1749579379176,0.02958983,108730.0,108720.0,0.63389425]
[1749579379395,0.03878675,108730.0,108720.0,0.63389425]
[1749579379610,0.22272921,108730.0,108720.0,0.63389425]
[1749579379880,0.2319263,108730.0,108720.0,0.63389425]
[1749579380069,0.2319263,108730.0,108720.0,0.76216244]
[1749579380070,0.02959034,108730.0,108720.0,0.76216244]
[1749579380492,0.02959034,108730.0,108720.0,0.63389425]
[1749579380922,0.01119641,108730.0,108720.0,0.63389425]
[1749579381142,0.02039308,108730.0,108720.0,0.63389425]
[1749579381569,0.02039291,108730.0,108720.0,0.63389425]
[1749579381785,0.02958966,108730.0,108720.0,0.76216244]
[1749579383503,0.02958966,108730.0,108720.0,0.63389425]
[1749579383871,0.002,108730.0,108720.0,1.33191453]
[1749579384075,0.002,108730.0,108720.0,0.76216244]
[1749579384253,0.002,108730.0,108720.0,1.46018272]
[1749579384882,0.002,108730.0,108720.0,2.29198272]
[1749579385320,0.002,108730.0,108720.0,2.16371453]
[1749579386162,0.002,108730.0,108720.0,2.29195176]
[1749579386997,0.002,108730.0,108720.0,1.95195176]
[1749579387604,0.002,108730.0,108720.0,1.77269932]
[1749579387808,0.002,108730.0,108720.0,2.48911462]
[1749579388019,0.002,108730.0,108720.0,2.63594462]
[1749579388234,0.00056059,108730.0,108720.0,2.90770739]
[1749579388444,0.00056059,108730.0,108720.0,2.95770739]
[1749579388645,0.00056059,108730.0,108720.0,1.56066683]
[1749579388865,0.00056059,108730.0,108720.0,2.95670739]
[1749579389062,0.00056059,108730.0,108720.0,2.95970739]
[1749579389468,0.00056059,108730.0,108720.0,2.95670739]
[1749579389770,0.00056059,108730.0,108720.0,2.96170739]
[1749579390029,0.00056059,108730.0,108720.0,2.96570739]
[1749579390249,0.00056059,108730.0,108720.0,3.01397282]
[1749579390483,0.00056059,108730.0,108720.0,3.01397291]
[1749579390714,0.00056059,108730.0,108720.0,3.03017025]
[1749579390937,0.00056059,108730.0,108720.0,2.90077299]
[1749579391161,0.00056059,108730.0,108720.0,3.03017033]
[1749579391386,0.00056059,108730.0,108720.0,3.02417033]
[1749579391647,0.00056059,108730.0,108720.0,2.33315005]
[1749579391870,0.00056059,108730.0,108720.0,2.34234748]
[1749579392116,0.00056059,108730.0,108720.0,3.04036776]
[1749579392340,0.00056059,108730.0,108720.0,3.03336776]
[1749579392826,0.00056059,108730.0,108720.0,3.03217042]
[1749579393044,0.00056059,108730.0,108720.0,2.3157552]
[1749579393231,0.00056059,108730.0,108720.0,2.32495271]
[1749579393467,0.00056059,108730.0,108720.0,1.49753492]
[1749579393693,0.00056059,108730.0,108720.0,2.32495271]
[1749579393998,0.00056059,108730.0,108720.0,2.27495271]
[1749579394182,0.00056059,108730.0,108720.0,2.66495271]
[1749579395389,0.00056059,108730.0,108720.0,2.6557552]
[1749579395634,0.00056059,108730.0,108720.0,1.63518068]
[1749579395876,0.00056059,108730.0,108720.0,2.69543115]
[1749579396110,0.00056059,108730.0,108720.0,2.65575553]
[1749579396338,0.00056059,108730.0,108720.0,2.46259889]
[1749579396339,0.00015898,108730.0,108720.0,2.46259889]
[1749579396576,0.00015898,108730.0,108720.0,2.28320096]
[1749579396820,0.00015898,108730.0,108720.0,2.64655768]
[1749579397045,0.00015898,108730.0,108720.0,2.65575553]
[1749579397403,0.00015898,108730.0,108720.0,2.65575545]
[1749579397603,0.00015898,108730.0,108720.0,2.65575553]
[1749579398519,0.00015898,108730.0,108720.0,2.66495321]
[1749579398968,0.00015898,108730.0,108720.0,2.6649533]
[1749579399173,0.00015898,108730.0,108720.0,2.65575553]
[1749579399795,0.00015898,108730.0,108720.0,1.53518068]
[1749579400013,0.00015898,108730.0,108720.0,1.84469571]
[1749579400452,0.00015898,108730.0,108720.0,2.55725684]
[1749579404859,0.00015898,108730.0,108720.0,3.59163005]
[1749579405074,0.00015898,108730.0,108720.0,3.46367874]
[1749579405305,0.00919481,108750.0,108740.0,0.24624085]
[1749579405541,0.00919481,108750.0,108740.0,0.52420553]
[1749579405749,0.2275222,108760.0,108740.0,0.52420553]
[1749579405963,0.2275222,108760.0,108750.0,0.1864334]
[1749579406378,0.21832832,108760.0,108750.0,0.1864334]
[1749579406991,0.20913419,108760.0,108750.0,0.1864334]
[1749579407417,0.19993981,108760.0,108750.0,0.1864334]
[1749579408224,0.21613981,108760.0,108750.0,0.1894334]
[1749579408718,0.21613981,108760.0,108750.0,0.1934334]
[1749579409314,0.21613981,108760.0,108750.0,0.5934334]
[1749579412238,0.21613981,108760.0,108750.0,0.68496468]
[1749579414110,0.55613981,108760.0,108750.0,0.68496468]
[1749579417764,0.0178,108770.0,108750.0,0.71556468]
[1749579417978,0.19507075,108770.0,108760.0,0.09153128]
[1749579418201,0.53507075,108770.0,108760.0,0.18288468]
[1749579418615,0.55087075,108770.0,108760.0,0.18288468]
[1749579419241,0.55087075,108770.0,108760.0,0.18488468]
[1749579420654,0.55087075,108770.0,108760.0,0.18688468]
[1749579421562,0.55087075,108770.0,108760.0,0.58688468]
[1749579423159,0.56727075,108770.0,108760.0,0.58688468]
[1749579423577,0.56727075,108770.0,108760.0,0.68192468]
[1749579423783,0.56727075,108770.0,108760.0,0.5903934]
[1749579424710,0.56727075,108770.0,108760.0,0.4953534]
[1749579424936,0.56727075,108770.0,108760.0,0.5903934]
[1749579425772,0.56727075,108770.0,108760.0,0.68192468]
[1749579432111,0.56727075,108770.0,108760.0,0.5903934]
[1749579432312,0.56727075,108770.0,108760.0,0.58688468]
[1749579432514,0.56727075,108770.0,108760.0,0.68192468]
[1749579432726,0.22727075,108770.0,108760.0,0.68192468]
[1749579433504,0.30332689,108770.0,108760.0,0.68192468]
[1749579433719,0.22727075,108770.0,108760.0,0.5903934]
[1749579436793,0.22727075,108770.0,108760.0,0.1903934]
[1749579437226,0.22727075,108770.0,108760.0,0.5903934]
[1749579438603,0.22727075,108770.0,108760.0,0.68192468]
[1749579438604,0.21087075,108770.0,108760.0,0.68192468]
[1749579438820,0.21087075,108770.0,108760.0,0.5903934]
[1749579439038,0.21087075,108770.0,108760.0,0.6065934]
[1749579439039,0.19507075,108770.0,108760.0,0.6065934]
[1749579439256,0.19507075,108770.0,108760.0,0.69812468]
[1749579439742,0.56607075,108770.0,108760.0,0.5903934]
[1749579442147,0.56607075,108770.0,108760.0,0.4953534]
[1749579442363,0.56607075,108770.0,108760.0,0.5883934]
[1749579442596,0.56607075,108770.0,108760.0,0.5863934]
[1749579442811,0.56607075,108770.0,108760.0,0.5873934]
[1749579443732,0.55107075,108770.0,108760.0,0.5873934]
[1749579443951,0.53507075,108770.0,108760.0,0.5873934]
[1749579445000,0.53507075,108770.0,108760.0,0.6025934]
[1749579445214,0.53507075,108770.0,108760.0,0.2025934]
[1749579445423,0.53507075,108770.0,108760.0,0.1873934]
[1749579445844,0.55137075,108770.0,108760.0,0.5873934]
[1749579448038,0.56677075,108770.0,108760.0,0.5873934]
[1749579454057,0.22677075,108770.0,108760.0,0.5873934]
[1749579454472,0.21137075,108770.0,108760.0,0.5873934]
[1749579456294,0.19507075,108770.0,108760.0,0.61787125]
[1749579456514,0.19507075,108770.0,108760.0,0.5873934]
[1749579456771,0.19507075,108770.0,108760.0,0.1873934]
[1749579457202,0.21087075,108770.0,108760.0,0.5873934]
[1749579457884,0.21087075,108770.0,108760.0,0.4923534]
[1749579458130,0.60909689,108770.0,108760.0,0.001]
[1749579458594,0.23389824,108750.0,108740.0,0.09153128]
[1749579458884,0.19312102,108740.0,108730.0,0.09153128]
[1749579459130,0.19312102,108740.0,108730.0,0.61418468]
[1749579459341,0.19312102,108740.0,108730.0,0.6176534]
[1749579460259,0.19312102,108740.0,108730.0,0.6246534]
[1749579463576,0.19312102,108740.0,108730.0,0.5296534]
[1749579463792,0.20241437,108740.0,108730.0,0.5933534]
[1749579464027,0.20241437,108740.0,108730.0,0.4983534]
[1749579464257,0.20241437,108740.0,108730.0,0.5933534]
[1749579464258,0.21861437,108740.0,108730.0,0.5933534]
[1749579464482,0.25886661,108740.0,108730.0,0.5933534]
[1749579464934,0.61386661,108740.0,108730.0,0.407]
[1749579465614,0.61386661,108740.0,108730.0,0.404]
[1749579465842,0.61386661,108740.0,108730.0,0.406]
[1749579466279,0.61386661,108740.0,108730.0,0.404]
[1749579466527,0.61386661,108740.0,108730.0,0.4]
[1749579466766,0.61386661,108740.0,108730.0,0.402]
[1749579466974,0.61386661,108740.0,108730.0,0.4]
[1749579467682,0.61486661,108740.0,108730.0,0.4]
[1749579467926,0.19313879,108730.0,108720.0,0.09704]
[1749579468176,0.19313879,108730.0,108720.0,0.1883934]
[1749579468418,0.18394187,108730.0,108720.0,0.5883934]
[1749579468659,0.19313879,108730.0,108720.0,0.6192934]
[1749579469608,0.19313879,108730.0,108720.0,0.6202934]
[1749579470743,0.19313879,108730.0,108720.0,0.63745341]
[1749579470954,0.19313879,108730.0,108720.0,0.63745225]
[1749579471586,0.19313879,108730.0,108720.0,0.6202934]
[1749579471830,0.19313879,108730.0,108720.0,0.6374524]
[1749579472295,0.19313879,108730.0,108720.0,0.63745058]
[1749579472956,0.19313879,108730.0,108720.0,0.63745075]
[1749579473427,0.19313879,108730.0,108720.0,0.63745059]
[1749579473636,0.19313879,108730.0,108720.0,0.6202934]
[1749579473835,0.19313879,108730.0,108720.0,0.63745056]
[1749579474572,0.19313879,108730.0,108720.0,0.6202934]
[1749579474797,0.19313879,108730.0,108720.0,0.63745001]
[1749579475453,0.53313879,108730.0,108720.0,0.63745001]
[1749579476413,0.19313879,108730.0,108720.0,0.6202934]
[1749579476629,0.19313879,108730.0,108720.0,0.63745]
[1749579477281,0.19313879,108730.0,108720.0,0.63745279]
[1749579477937,0.19313879,108730.0,108720.0,0.63745499]
[1749579478335,0.19313879,108730.0,108720.0,0.6202934]
[1749579478536,0.19313879,108730.0,108720.0,0.63745499]
[1749579478746,0.19313879,108730.0,108720.0,0.6202934]
[1749579479080,0.19313879,108730.0,108720.0,0.63745499]
[1749579480135,0.19313879,108730.0,108720.0,0.6202934]
[1749579480345,0.19313879,108730.0,108720.0,0.63745501]
[1749579480557,0.19313879,108730.0,108720.0,0.637455]
[1749579480761,0.19313879,108730.0,108720.0,0.6202934]
[1749579480979,0.53313879,108730.0,108720.0,0.637455]
[1749579481186,0.53313879,108730.0,108720.0,0.6202934]
[1749579481389,0.53313879,108730.0,108720.0,0.63745493]
[1749579482019,0.53313879,108730.0,108720.0,0.63745728]
[1749579482440,0.53313879,108730.0,108720.0,0.6202934]
[1749579482645,0.19313879,108730.0,108720.0,0.63745727]
[1749579482843,0.19313879,108730.0,108720.0,0.6202934]
[1749579483082,0.19313879,108730.0,108720.0,0.63746531]
[1749579483646,0.19313879,108730.0,108720.0,0.6374653]
[1749579484025,0.19313879,108730.0,108720.0,0.6202934]
[1749579484222,0.19313879,108730.0,108720.0,0.6374653]
[1749579485232,0.19313879,108730.0,108720.0,0.63746816]
[1749579485682,0.19313879,108730.0,108720.0,0.6202934]
[1749579485889,0.19313879,108730.0,108720.0,0.63746817]
[1749579486528,0.19313879,108730.0,108720.0,0.63747067]
[1749579486971,0.19313879,108730.0,108720.0,0.63748771]
[1749579487180,0.19313879,108730.0,108720.0,0.6202934]
[1749579487602,0.19313879,108730.0,108720.0,0.63748772]
[1749579487811,0.19313879,108730.0,108720.0,0.6202934]
[1749579488250,0.19313879,108730.0,108720.0,0.63748768]
[1749579489094,0.19313879,108730.0,108720.0,0.6202934]
[1749579489300,0.19313879,108730.0,108720.0,0.63750022]
[1749579489537,0.19313879,108730.0,108720.0,0.637502]
[1749579490549,0.19313879,108730.0,108720.0,0.6202934]
[1749579490782,0.19313879,108730.0,108720.0,0.63750202]
[1749579491011,0.19313879,108730.0,108720.0,0.6202934]
[1749579491252,0.19313879,108730.0,108720.0,0.63750608]
[1749579491497,0.19313879,108730.0,108720.0,0.6202934]
[1749579491735,0.19313879,108730.0,108720.0,0.63750607]
[1749579492198,0.19313879,108730.0,108720.0,0.63750608]
[1749579493103,0.19313879,108730.0,108720.0,0.6202934]
[1749579493549,0.00919692,108730.0,108720.0,0.63751805]
[1749579493794,0.18392495,108740.0,108730.0,0.0318]
[1749579494002,0.18392495,108740.0,108730.0,0.2353725]
[1749579494218,0.18392495,108740.0,108730.0,0.2181534]
[1749579494476,0.18392495,108740.0,108730.0,0.23537234]
[1749579494692,0.18392495,108740.0,108730.0,0.2353723]
[1749579495563,0.18492495,108740.0,108730.0,0.2353723]
[1749579495779,0.18492495,108740.0,108730.0,0.2181534]
[1749579496211,0.18492495,108740.0,108730.0,0.2353723]
[1749579497503,0.18492495,108740.0,108730.0,0.6353723]
[1749579497999,0.18492495,108740.0,108730.0,0.6181534]
[1749579498268,0.001,108740.0,108730.0,0.63536818]
[1749579498498,0.02858687,108740.0,108730.0,0.92689946]
[1749579498726,0.03778286,108740.0,108730.0,0.92689946]
[1749579498955,0.04697902,108740.0,108730.0,0.92689946]
[1749579499173,0.04697902,108740.0,108730.0,0.90968468]
[1749579499388,0.04597978,108740.0,108730.0,0.90968468]
[1749579499596,0.04597978,108740.0,108730.0,0.92822553]
[1749579499597,0.0275873,108740.0,108730.0,0.92822553]
[1749579500017,0.03678346,108740.0,108730.0,0.83669425]
[1749579500705,0.03678346,108740.0,108730.0,0.96484228]
[1749579500950,0.03678346,108740.0,108730.0,0.83669425]
[1749579501161,0.0275873,108740.0,108730.0,0.83669425]
[1749579502051,0.03678346,108740.0,108730.0,0.83669425]
[1749579502886,0.03678337,108740.0,108730.0,0.83669425]
[1749579503514,0.03678337,108740.0,108730.0,0.92837809]
[1749579503923,0.0275873,108740.0,108730.0,0.92837809]
[1749579505306,0.00919557,108740.0,108730.0,1.62639837]
[1749579505530,0.02758712,108740.0,108730.0,1.62639837]
[1749579506170,0.01839122,108740.0,108730.0,1.26837809]
[1749579506481,0.00919557,108740.0,108730.0,1.87471453]
[1749579506694,0.00919557,108740.0,108730.0,2.00286256]
[1749579507103,0.01839131,108740.0,108730.0,2.00286256]
[1749579507364,0.00919557,108740.0,108730.0,2.00286256]
[1749579507584,0.20229861,108750.0,108730.0,1.97106256]
[1749579507838,0.20229861,108750.0,108740.0,0.31062864]
[1749579508048,0.01838945,108750.0,108740.0,1.25368892]
[1749579508320,0.01838945,108750.0,108740.0,1.34864892]
[1749579508540,0.02758442,108750.0,108740.0,1.74864892]
[1749579509020,0.03677956,108750.0,108740.0,1.05062864]
[1749579509482,0.02758442,108750.0,108740.0,1.05062864]
[1749579509698,0.03677948,108750.0,108740.0,1.05062864]
[1749579509905,0.02758442,108750.0,108740.0,1.05162864]
[1749579510125,0.03677956,108750.0,108740.0,1.05162864]
[1749579512598,0.04597487,108750.0,108740.0,1.05162864]
[1749579513049,0.03677956,108750.0,108740.0,1.05162864]
[1749579513279,0.04597487,108750.0,108740.0,1.05162864]
[1749579513490,0.04597487,108750.0,108740.0,0.95666864]
[1749579513702,0.03677956,108750.0,108740.0,1.05162864]
[1749579513918,0.04597487,108750.0,108740.0,1.05162864]
[1749579514123,0.22988291,108750.0,108740.0,0.95666864]
[1749579514347,0.22068827,108750.0,108740.0,1.05162864]
[1749579514784,0.21149346,108750.0,108740.0,1.05162864]
[1749579516309,0.21779849,108750.0,108740.0,0.58396864]
[1749579516532,0.21779849,108750.0,108740.0,0.5873134]
[1749579516986,0.23419849,108750.0,108740.0,0.5873134]
[1749579519098,0.21779849,108750.0,108740.0,0.5873134]
[1749579521100,0.23329849,108750.0,108740.0,0.5873134]
[1749579524291,0.21779849,108750.0,108740.0,0.5873134]